Workbook

Sheet Scale_Drawing
B2: N5 Lifeskills - Scale Drawing Created by Mr.Lafferty@mathsrevision.com (Remember it is all about accuracy)
AO6: 1 | AR6: =AP8*SIN(AO8*PI()/180) -> 5 | AS6: =AP8*COS(AO8*PI()/180) -> 8.660254038 | AV6: =AU8*SIN(AT8*PI()/180) -> 4.945058127 | AW6: =AU8*COS(AT8*PI()/180) -> 8.921121013 | AZ6: =AY8*SIN(AX8*PI()/180) -> 23.74933685 | BA6: =AY8*COS(AX8*PI()/180) -> -27.3204868 | BB6: =AV6+AZ6 -> 28.69439498 | BC6: =AW6+BA6 -> -18.39936579 | BD6: =ROUND(SQRT(BB6*BB6+BC6*BC6),1) -> 34.1
B7: ="Q1. A boat leaves Aberdeen harbour and goes on a bearing of "&AO8&AQ7&" for "&AP8&"km." -> Q1. A boat leaves Aberdeen harbour and goes on a bearing of 30° for 10km. | AO7: 2 | AQ7: ° | AR7: =AP9*SIN(AO9*PI()/180) -> 23.14035395 | AS7: =AP9*COS(AO9*PI()/180) -> -27.57759995 | AV7: =AU9*SIN(AT9*PI()/180) -> 5.047373134 | AW7: =AU9*COS(AT9*PI()/180) -> 8.400239547 | AZ7: =AY9*SIN(AX9*PI()/180) -> 22.52967 | BA7: =AY9*COS(AX9*PI()/180) -> -27.82182542 | BB7: =AV7+AZ7 -> 27.57704313 | BC7: =AW7+BA7 -> -19.42158587 | BD7: =ROUND(SQRT(BB7*BB7+BC7*BC7),1) -> 33.7
C8: ="It then changes course and heads on a bearing of "&AO9&AQ7&" for "&AP9&"km." -> It then changes course and heads on a bearing of 140° for 36km. | AO8: =ROUND(RAND()*(18-(4))+(4),0)*5 -> 30 | AP8: =ROUND(RAND()*(20-(2))+(2),0)*2 -> 10 | AR8: =AR6+AR7 -> 28.14035395 | AS8: =AS6+AS7 -> -18.91734591 | AT8: =AO8-1 -> 29 | AU8: =2*(AP8/2+0.1) -> 10.2 | AX8: =AO9-1 -> 139 | AY8: =2*(AP9/2+0.1) -> 36.2 | BB8: =AV6+AZ7 -> 27.47472813 | BC8: =AW6+BA7 -> -18.90070441 | BD8: 33.3
AO9: =ROUND(RAND()*(35-(20))+(20),0)*5 -> 140 | AP9: =ROUND(RAND()*(20-(2))+(2),0)*2 -> 36 | AT9: =AO8+1 -> 31 | AU9: =2*(AP8/2-0.1) -> 9.8 | AX9: =AO9+1 -> 141 | AY9: =2*(AP9/2-0.1) -> 35.8 | BB9: =AV7+AZ6 -> 28.79670998 | BC9: =AW7+BA6 -> -18.92024726 | BD9: 34.5
C10: ="Using a scale of "&AO6&"cm to represent "&AO7&"km how far is the boat from the Aberdeen harbour to 1 decimal place?" -> Using a scale of 1cm to represent 2km how far is the boat from the Aberdeen harbour to 1 decimal place? | BD10: =MIN(BD6:BD9) -> 33.3
AO11: =ROUND(SQRT(AR8*AR8+AS8*AS8),1) -> 33.9 | BD11: =MAX(BD6:BD9) -> 34.5
E12: Distance = | L12: km
AO15: 1 | AR15: =AP17*SIN(AO17*PI()/180) -> 5.13030215 | AS15: =AP17*COS(AO17*PI()/180) -> -14.09538931 | AV15: =AU17*SIN(AT17*PI()/180) -> 5.554703218 | AW15: =AU17*COS(AT17*PI()/180) -> -14.47049661 | AZ15: =AY17*SIN(AX17*PI()/180) -> -84.44735312 | BA15: =AY17*COS(AX17*PI()/180) -> 13.37514676 | BB15: =AV15+AZ15 -> -78.8926499 | BC15: =AW15+BA15 -> -1.09534985 | BD15: =ROUND(SQRT(BB15*BB15+BC15*BC15),1) -> 78.9
B16: ="Q2. A helicopter takes off from Glasgow airport and goes on a bearing of "&AO17&AQ16&" for "&AP17&"km." -> Q2. A helicopter takes off from Glasgow airport and goes on a bearing of 160° for 15km. | AO16: 5 | AQ16: ° | AR16: =AP18*SIN(AO18*PI()/180) -> -83.70865901 | AS16: =AP18*COS(AO18*PI()/180) -> 14.7600951 | AV16: =AU18*SIN(AT18*PI()/180) -> 4.72073824 | AW16: =AU18*COS(AT18*PI()/180) -> -13.71001935 | AZ16: =AY18*SIN(AX18*PI()/180) -> -82.947497 | BA16: =AY18*COS(AX18*PI()/180) -> 16.12336011 | BB16: =AV16+AZ16 -> -78.22675876 | BC16: =AW16+BA16 -> 2.413340763 | BD16: =ROUND(SQRT(BB16*BB16+BC16*BC16),1) -> 78.3
C17: ="It then changes course and heads on a bearing of "&AO18&AQ16&" for "&AP18&"km." -> It then changes course and heads on a bearing of 280° for 85km. | AO17: =ROUND(RAND()*(35-(20))+(20),0)*5 -> 160 | AP17: =ROUND(RAND()*(20-(2))+(2),0)*5 -> 15 | AR17: =AR15+AR16 -> -78.57835686 | AS17: =AS15+AS16 -> 0.6647057899 | AT17: =AO17-1 -> 159 | AU17: =5*(AP17/5+0.1) -> 15.5 | AX17: =AO18-1 -> 279 | AY17: =5*(AP18/5+0.1) -> 85.5 | BB17: =AV15+AZ16 -> -77.39279378 | BC17: =AW15+BA16 -> 1.652863499 | BD17: =ROUND(SQRT(BB17*BB17+BC17*BC17),1) -> 77.4
AO18: =ROUND(RAND()*(70-(40))+(40),0)*5 -> 280 | AP18: =ROUND(RAND()*(20-(2))+(2),0)*5 -> 85 | AT18: =AO17+1 -> 161 | AU18: =5*(AP17/5-0.1) -> 14.5 | AX18: =AO18+1 -> 281 | AY18: =5*(AP18/5-0.1) -> 84.5 | BB18: =AV16+AZ15 -> -79.72661488 | BC18: =AW16+BA15 -> -0.3348725853 | BD18: 79.7
C19: ="Using a scale of "&AO15&"cm to represent "&AO16&"km how far is the helicopter from the Glasgow Airport to 1 decimal place ?" -> Using a scale of 1cm to represent 5km how far is the helicopter from the Glasgow Airport to 1 decimal place ? | BD19: =MIN(BD15:BD18) -> 77.4
AO20: =ROUND(SQRT(AR17*AR17+AS17*AS17),1) -> 78.6 | BD20: =MAX(BD15:BD18) -> 79.7
E21: Distance = | L21: km
AO24: 1 | AR24: =AP26*SIN(AO26*PI()/180) -> 32.5 | AS24: =AP26*COS(AO26*PI()/180) -> -56.29165125 | AV24: =AU26*SIN(AT26*PI()/180) -> 33.99251294 | AW24: =AU26*COS(AT26*PI()/180) -> -56.57304185 | AZ24: =AY26*SIN(AX26*PI()/180) -> -41.25986671 | BA24: =AY26*COS(AX26*PI()/180) -> -29.97704787 | BB24: =AV24-AZ24 -> 75.25237966 | BC24: =AW24-BA24 -> -26.59599398 | BD24: =ROUND(SQRT(BB24*BB24+BC24*BC24),1) -> 79.8
B25: ="Q3. Ship A leaves Southampton harbour on a bearing of "&AO26&AQ25&" for "&AP26&"km." -> Q3. Ship A leaves Southampton harbour on a bearing of 150° for 65km. | AO25: 10 | AQ25: ° | AR25: =AP27*SIN(AO27*PI()/180) -> -40.95760221 | AS25: =AP27*COS(AO27*PI()/180) -> -28.67882182 | AV25: =AU27*SIN(AT27*PI()/180) -> 31.0278157 | AW25: =AU27*COS(AT27*PI()/180) -> -55.97566126 | AZ25: =AY27*SIN(AX27*PI()/180) -> -40.62284106 | BA25: =AY27*COS(AX27*PI()/180) -> -27.40045227 | BB25: =AV25-AZ25 -> 71.65065675 | BC25: =AW25-BA25 -> -28.57520899 | BD25: =ROUND(SQRT(BB25*BB25+BC25*BC25),1) -> 77.1
C26: ="Ship B leaves Southamption harbour and heads on a bearing of "&AO27&AQ25&" for "&AP27&"km." -> Ship B leaves Southamption harbour and heads on a bearing of 235° for 50km. | AO26: =ROUND(RAND()*(31-(22))+(22),0)*5 -> 150 | AP26: =ROUND(RAND()*(18-(8))+(8),0)*5 -> 65 | AT26: =AO26-1 -> 149 | AU26: =10*(AP26/10+0.1) -> 66 | AX26: =AO27-1 -> 234 | AY26: =10*(AP27/10+0.1) -> 51 | BB26: =AV24-AZ25 -> 74.615354 | BC26: =AW24-BA25 -> -29.17258958 | BD26: 80.1
AO27: =ROUND(RAND()*(50-(40))+(40),0)*5 -> 235 | AP27: =ROUND(RAND()*(18-(8))+(8),0)*5 -> 50 | AT27: =AO26+1 -> 151 | AU27: =10*(AP26/10-0.1) -> 64 | AX27: =AO27+1 -> 236 | AY27: =10*(AP27/10-0.1) -> 49 | BB27: =AV25-AZ24 -> 72.28768241 | BC27: =AW25-BA24 -> -25.99861339 | BD27: 76.8
C28: ="Using a scale of "&AO24&"cm to represent "&AO25&"km how far apart are the Ships to 1 decimal place ?" -> Using a scale of 1cm to represent 10km how far apart are the Ships to 1 decimal place ? | BD28: =MIN(BD24:BD27) -> 76.8
AO29: =ROUND(SQRT(AR26*AR26+AS26*AS26),1) -> 0 | BD29: =MAX(BD24:BD27) -> 80.1
E30: Distance = | L30: km
AO33: 1 | AR33: =AP35*SIN(AO35*PI()/180) -> 57.95554958 | AS33: =AP35*COS(AO35*PI()/180) -> 15.52914271 | AV33: =AU35*SIN(AT35*PI()/180) -> 58.63696345 | AW33: =AU35*COS(AT35*PI()/180) -> 16.8138787 | AZ33: =AY35*SIN(AX35*PI()/180) -> -88.29691109 | BA33: =AY35*COS(AX35*PI()/180) -> 22.0148925 | BB33: =AV33-AZ33 -> 146.9338745 | BC33: =AW33-BA33 -> -5.201013795 | BD33: =ROUND(SQRT(BB33*BB33+BC33*BC33),1) -> 147
B34: ="Q4. Fighter Jet A leaves base on a bearing of "&AO35&AQ34&" for "&AP35&"km." -> Q4. Fighter Jet A leaves base on a bearing of 75° for 60km. | AO34: 10 | AQ34: ° | AR34: =AP36*SIN(AO36*PI()/180) -> -86.93332437 | AS34: =AP36*COS(AO36*PI()/180) -> 23.29371406 | AV34: =AU36*SIN(AT36*PI()/180) -> 57.24744785 | AW34: =AU36*COS(AT36*PI()/180) -> 14.27339184 | AZ34: =AY36*SIN(AX36*PI()/180) -> -85.55229094 | BA34: =AY36*COS(AX36*PI()/180) -> 24.53172467 | BB34: =AV34-AZ34 -> 142.7997388 | BC34: =AW34-BA34 -> -10.25833283 | BD34: =ROUND(SQRT(BB34*BB34+BC34*BC34),1) -> 143.2
C35: =" Fighter Jet B leaves base on a bearing of "&AO36&AQ34&" for "&AP36&"km." -> Fighter Jet B leaves base on a bearing of 285° for 90km. | AO35: =ROUND(RAND()*(18-(3))+(3),0)*5 -> 75 | AP35: =ROUND(RAND()*(18-(8))+(8),0)*5 -> 60 | AT35: =AO35-1 -> 74 | AU35: =10*(AP35/10+0.1) -> 61 | AX35: =AO36-1 -> 284 | AY35: =10*(AP36/10+0.1) -> 91 | BB35: =AV33-AZ34 -> 144.1892544 | BC35: =AW33-BA34 -> -7.717845963 | BD35: 144.4
AO36: =ROUND(RAND()*(70-(55))+(55),0)*5 -> 285 | AP36: =ROUND(RAND()*(18-(8))+(8),0)*5 -> 90 | AT36: =AO35+1 -> 76 | AU36: =10*(AP35/10-0.1) -> 59 | AX36: =AO36+1 -> 286 | AY36: =10*(AP36/10-0.1) -> 89 | BB36: =AV34-AZ33 -> 145.5443589 | BC36: =AW34-BA33 -> -7.741500659 | BD36: 145.8
C37: ="Using a scale of "&AO33&"cm to represent "&AO34&"km how far apart are the Fighter Jets to 1 decimal place ?" -> Using a scale of 1cm to represent 10km how far apart are the Fighter Jets to 1 decimal place ? | BD37: =MIN(BD33:BD36) -> 143.2
AO38: =ROUND(SQRT(AR35*AR35+AS35*AS35),1) -> 0 | BD38: =MAX(BD33:BD36) -> 147
E39: Distance = | L39: km
